[Event "*** Titled Tuesday Blitz"]
[Site "Chess.com"]
[Date "2019.04.02"]
[Round "7"]
[White "FedaMaster"]
[Black "Cayse"]
[Result "0-1"]
[WhiteElo "2607"]
[BlackElo "2674"]
[TimeControl "180+2"]
[EndTime "15:30:01 PDT"]
[Termination "Cayse won by resignation"]

1. e4 {[%clk 0:03:01.9]} 1... e5 {[%clk 0:03:00.7]} 2. Nf3 {[%clk 0:03:01.7]}
2... Nc6 {[%clk 0:03:01.8]} 3. Bc4 {[%clk 0:02:52.9]} 3... Nf6 {[%clk
0:03:02.1]} 4. d4 {[%clk 0:02:45]} 4... exd4 {[%clk 0:03:00.8]} 5. O-O {[%clk
0:02:46.2]} 5... Nxe4 {[%clk 0:02:57.2]} 6. Re1 {[%clk 0:02:45.4]} 6... d5
{[%clk 0:02:58.5]} 7. Bxd5 {[%clk 0:02:46.4]} 7... Qxd5 {[%clk 0:03:00.4]} 8.
Nc3 {[%clk 0:02:48]} 8... Qh5 {[%clk 0:03:00.6]} 9. Nxe4 {[%clk 0:02:45.1]} 9...
Be6 {[%clk 0:03:00.9]} 10. Bg5 {[%clk 0:02:42]} 10... Bd6 {[%clk 0:02:59.5]} 11.
h4 {[%clk 0:02:39.4]} 11... O-O {[%clk 0:02:48.3]} 12. Nxd4 {[%clk 0:02:36.2]}
12... Qxd1 {[%clk 0:02:47.6]} 13. Raxd1 {[%clk 0:02:38.1]} 13... Nxd4 {[%clk
0:02:48.9]} 14. Rxd4 {[%clk 0:02:40]} 14... Be5 {[%clk 0:02:49.3]} 15. Rb4
{[%clk 0:02:30.9]} 15... b6 {[%clk 0:02:49.5]} 16. f4 {[%clk 0:02:21.2]} 16...
c5 {[%clk 0:02:47]} 17. Rb3 {[%clk 0:02:16.3]} 17... Bd4+ {[%clk 0:02:46.4]} 18.
Kh2 {[%clk 0:02:17.6]} 18... Bxb3 {[%clk 0:02:47.8]} 19. axb3 {[%clk 0:02:17.9]}
19... f6 {[%clk 0:02:43.4]} 20. c3 {[%clk 0:02:17.4]} 20... fxg5 {[%clk
0:02:43.6]} 21. cxd4 {[%clk 0:02:18.3]} 21... Rxf4 {[%clk 0:02:42.6]} 22. dxc5
{[%clk 0:02:17.2]} 22... Rxh4+ {[%clk 0:02:42.5]} 23. Kg3 {[%clk 0:02:18.6]}
23... bxc5 {[%clk 0:02:44]} 24. Nxc5 {[%clk 0:02:17.5]} 24... Rb4 {[%clk
0:02:42.5]} 25. Re7 {[%clk 0:02:17.7]} 25... h6 {[%clk 0:02:32.2]} 26. Ne6
{[%clk 0:02:14.7]} 26... Rxb3+ {[%clk 0:02:33.1]} 27. Kg4 {[%clk 0:02:15.7]}
27... Rb4+ {[%clk 0:02:33.6]} 28. Kh5 {[%clk 0:02:15.4]} 28... Kh8 {[%clk
0:02:31.7]} 29. Nxg7 {[%clk 0:02:08.7]} 29... Rh4+ {[%clk 0:02:14.7]} 30. Kg6
{[%clk 0:02:08.8]} 30... Rg8 {[%clk 0:02:15.9]} 31. Rxa7 {[%clk 0:01:53.5]}
31... Rb4 {[%clk 0:02:14.5]} 32. Kxh6 {[%clk 0:01:50]} 32... Rb6+ {[%clk
0:02:14.9]} 33. Kh5 {[%clk 0:01:48.4]} 33... Rxg7 {[%clk 0:02:16.2]} 34. Ra8+
{[%clk 0:01:49.9]} 34... Kh7 {[%clk 0:02:17.2]} 0-1

[Event "*** Titled Tuesday Blitz"]
[Site "Chess.com"]
[Date "2019.04.02"]
[Round "7"]
[White "zurzan"]
[Black "kikoveiga"]
[Result "1-0"]
[WhiteElo "2045"]
[BlackElo "2177"]
[TimeControl "180+2"]
[EndTime "15:30:11 PDT"]
[Termination "zurzan won by resignation"]

1. c4 {[%clk 0:03:01.9]} 1... e6 {[%clk 0:02:58.5]} 2. g3 {[%clk 0:03:02.8]}
2... d5 {[%clk 0:02:59.3]} 3. Bg2 {[%clk 0:03:03.2]} 3... Nf6 {[%clk 0:02:57.8]}
4. b3 {[%clk 0:03:03.5]} 4... Be7 {[%clk 0:02:57.2]} 5. Bb2 {[%clk 0:03:04]}
5... O-O {[%clk 0:02:59.1]} 6. d3 {[%clk 0:03:03.5]} 6... c5 {[%clk 0:03:01]} 7.
Nf3 {[%clk 0:03:01.6]} 7... d4 {[%clk 0:03:01.6]} 8. O-O {[%clk 0:03:02.2]} 8...
Nc6 {[%clk 0:03:02.8]} 9. e3 {[%clk 0:03:01.2]} 9... e5 {[%clk 0:03:04.2]} 10.
exd4 {[%clk 0:03:01.3]} 10... cxd4 {[%clk 0:03:05.5]} 11. Re1 {[%clk 0:03:01]}
11... Nd7 {[%clk 0:03:06.6]} 12. Nbd2 {[%clk 0:02:59.5]} 12... a5 {[%clk
0:03:08]} 13. a3 {[%clk 0:02:59.3]} 13... f5 {[%clk 0:03:02.2]} 14. Qc2 {[%clk
0:02:48]} 14... Bf6 {[%clk 0:03:02.5]} 15. c5 {[%clk 0:02:44.4]} 15... Kh8
{[%clk 0:03:00.8]} 16. Qc4 {[%clk 0:02:27.4]} 16... Re8 {[%clk 0:02:48.3]} 17.
b4 {[%clk 0:02:26.1]} 17... axb4 {[%clk 0:02:43.2]} 18. axb4 {[%clk 0:02:26.5]}
18... Rxa1 {[%clk 0:02:45.1]} 19. Rxa1 {[%clk 0:02:26.3]} 19... Nf8 {[%clk
0:02:47]} 20. b5 {[%clk 0:02:21.7]} 20... Be6 {[%clk 0:02:47.9]} 21. Qa4 {[%clk
0:02:21.5]} 21... Ne7 {[%clk 0:02:47.9]} 22. Re1 {[%clk 0:02:11.1]} 22... Nfg6
{[%clk 0:02:45.5]} 23. Nxd4 {[%clk 0:02:03.6]} 23... Bd7 {[%clk 0:02:36.4]} 24.
N4f3 {[%clk 0:01:56.9]} 24... Qc8 {[%clk 0:02:37.5]} 25. Rc1 {[%clk 0:01:29.8]}
25... Nd5 {[%clk 0:02:31.3]} 26. d4 {[%clk 0:01:16.6]} 26... e4 {[%clk
0:02:31.9]} 27. Ne5 {[%clk 0:01:15]} 27... Nc3 {[%clk 0:02:16.6]} 28. Bxc3
{[%clk 0:01:12.8]} 1-0

[Event "*** Titled Tuesday Blitz"]
[Site "Chess.com"]
[Date "2019.04.02"]
[Round "7"]
[White "Fandorine"]
[Black "KhalilMousavi77"]
[Result "1-0"]
[WhiteElo "2854"]
[BlackElo "2729"]
[TimeControl "180+2"]
[EndTime "15:30:20 PDT"]
[Termination "Fandorine won by resignation"]

1. e4 {[%clk 0:03:01.9]} 1... e6 {[%clk 0:03:00]} 2. d4 {[%clk 0:03:03.5]} 2...
d5 {[%clk 0:03:01.4]} 3. Nc3 {[%clk 0:03:05.1]} 3... Bb4 {[%clk 0:03:03.1]} 4.
e5 {[%clk 0:03:06.5]} 4... c5 {[%clk 0:03:04.7]} 5. a3 {[%clk 0:03:06.9]} 5...
Bxc3+ {[%clk 0:03:06.4]} 6. bxc3 {[%clk 0:03:08.8]} 6... Ne7 {[%clk 0:03:08.3]}
7. a4 {[%clk 0:03:07.9]} 7... b6 {[%clk 0:03:07.1]} 8. Bb5+ {[%clk 0:03:03.9]}
8... Bd7 {[%clk 0:03:04.2]} 9. Be2 {[%clk 0:03:04]} 9... Nbc6 {[%clk 0:03:02]}
10. f4 {[%clk 0:03:05.2]} 10... Qc7 {[%clk 0:02:58.8]} 11. Nf3 {[%clk
0:03:03.7]} 11... cxd4 {[%clk 0:02:45.3]} 12. cxd4 {[%clk 0:03:05]} 12... Nb4
{[%clk 0:02:45.2]} 13. O-O {[%clk 0:02:52.7]} 13... Qxc2 {[%clk 0:02:44.9]} 14.
Qe1 {[%clk 0:02:53.9]} 14... Nd3 {[%clk 0:02:43]} 15. Bxd3 {[%clk 0:02:50.9]}
15... Qxd3 {[%clk 0:02:44.9]} 16. Ba3 {[%clk 0:02:51.6]} 16... Nf5 {[%clk
0:02:37.7]} 17. Kh1 {[%clk 0:02:38.6]} 17... Rc8 {[%clk 0:02:31.2]} 18. g4
{[%clk 0:02:02.3]} 18... Qe4 {[%clk 0:01:57.5]} 19. gxf5 {[%clk 0:01:41.4]}
19... Rc4 {[%clk 0:01:48.8]} 20. Qh4 {[%clk 0:01:29.6]} 20... f6 {[%clk
0:01:35.9]} 21. exf6 {[%clk 0:01:30.5]} 1-0

[Event "*** Titled Tuesday Blitz"]
[Site "Chess.com"]
[Date "2019.04.02"]
[Round "7"]
[White "LaughingTiger"]
[Black "Dare-Dare"]
[Result "1-0"]
[WhiteElo "2177"]
[BlackElo "2112"]
[TimeControl "180+2"]
[EndTime "15:30:39 PDT"]
[Termination "LaughingTiger won by resignation"]

1. e4 {[%clk 0:03:01.9]} 1... e6 {[%clk 0:03:01.1]} 2. d4 {[%clk 0:03:01]} 2...
d5 {[%clk 0:03:03]} 3. exd5 {[%clk 0:03:00.3]} 3... exd5 {[%clk 0:03:04]} 4. Nf3
{[%clk 0:03:01.8]} 4... Bd6 {[%clk 0:03:05.1]} 5. Bd3 {[%clk 0:03:02.4]} 5...
Ne7 {[%clk 0:03:06.5]} 6. O-O {[%clk 0:03:03.2]} 6... O-O {[%clk 0:03:07.5]} 7.
h3 {[%clk 0:03:04]} 7... Nbc6 {[%clk 0:03:08.4]} 8. c4 {[%clk 0:03:02.4]} 8...
dxc4 {[%clk 0:03:06.9]} 9. Bxc4 {[%clk 0:03:02.9]} 9... Nb4 {[%clk 0:03:05.5]}
10. Nc3 {[%clk 0:03:01.6]} 10... c6 {[%clk 0:03:06.7]} 11. a3 {[%clk 0:02:58.7]}
11... Nbd5 {[%clk 0:03:06.9]} 12. Nxd5 {[%clk 0:03:00.3]} 12... Nxd5 {[%clk
0:03:08.5]} 13. Bxd5 {[%clk 0:03:02]} 13... cxd5 {[%clk 0:03:10.4]} 14. Be3
{[%clk 0:03:00.7]} 14... Bf5 {[%clk 0:03:09.6]} 15. Qd2 {[%clk 0:03:00.7]} 15...
Rc8 {[%clk 0:03:07.5]} 16. Rac1 {[%clk 0:02:59.8]} 16... Qb6 {[%clk 0:03:07.4]}
17. Rxc8 {[%clk 0:02:53.2]} 17... Rxc8 {[%clk 0:03:08.3]} 18. Rc1 {[%clk
0:02:54.7]} 18... Rxc1+ {[%clk 0:03:05.6]} 19. Qxc1 {[%clk 0:02:56.6]} 19... h6
{[%clk 0:03:06.3]} 20. b4 {[%clk 0:02:56.2]} 20... Qa6 {[%clk 0:03:05.5]} 21.
Bf4 {[%clk 0:02:53]} 21... Kh7 {[%clk 0:02:47.6]} 22. Bxd6 {[%clk 0:02:51]}
22... Qxd6 {[%clk 0:02:49.5]} 23. Qc5 {[%clk 0:02:50.3]} 23... Qxc5 {[%clk
0:02:48]} 24. dxc5 {[%clk 0:02:52.2]} 24... Kg6 {[%clk 0:02:44.2]} 25. Kf1
{[%clk 0:02:50.6]} 25... Bd3+ {[%clk 0:02:26.7]} 26. Ke1 {[%clk 0:02:50.8]}
26... Kf5 {[%clk 0:02:28.2]} 27. Kd2 {[%clk 0:02:47.8]} 27... Ke4 {[%clk
0:02:26.3]} 28. Kc3 {[%clk 0:02:37.9]} 28... Bb5 {[%clk 0:02:21.9]} 29. Nd2+
{[%clk 0:02:34.2]} 29... Ke5 {[%clk 0:02:22]} 30. Nf3+ {[%clk 0:02:35]} 30...
Ke4 {[%clk 0:02:22.8]} 31. Nd4 {[%clk 0:02:36.2]} 31... Bd7 {[%clk 0:02:23.3]}
32. b5 {[%clk 0:02:30.6]} 32... f5 {[%clk 0:02:19.9]} 33. a4 {[%clk 0:02:29.8]}
33... g5 {[%clk 0:02:17.2]} 34. a5 {[%clk 0:02:30.5]} 34... h5 {[%clk
0:02:16.7]} 35. b6 {[%clk 0:02:21.8]} 35... axb6 {[%clk 0:02:16.5]} 36. axb6
{[%clk 0:02:08.7]} 36... h4 {[%clk 0:02:01.3]} 37. c6 {[%clk 0:02:06.5]} 37...
Bc8 {[%clk 0:01:58.6]} 38. Nb5 {[%clk 0:02:05]} 38... Ke5 {[%clk 0:01:54.3]} 39.
Na7 {[%clk 0:02:04]} 39... Kd6 {[%clk 0:01:53.5]} 40. c7 {[%clk 0:02:00.7]}
40... Kd7 {[%clk 0:01:54.2]} 41. Nxc8 {[%clk 0:02:00.6]} 41... Kxc8 {[%clk
0:01:55.2]} 42. Kd4 {[%clk 0:02:01.7]} 42... g4 {[%clk 0:01:55.9]} 43. Kxd5
{[%clk 0:02:02.4]} 43... f4 {[%clk 0:01:57.1]} 44. f3 {[%clk 0:02:01.9]} 1-0

[Event "*** Titled Tuesday Blitz"]
[Site "Chess.com"]
[Date "2019.04.02"]
[Round "7"]
[White "ENEASZ"]
[Black "MrChessSponge"]
[Result "1/2-1/2"]
[WhiteElo "2434"]
[BlackElo "2276"]
[TimeControl "180+2"]
[EndTime "15:30:40 PDT"]
[Termination "Game drawn by agreement"]

1. e4 {[%clk 0:03:01.9]} 1... e5 {[%clk 0:02:59]} 2. Nf3 {[%clk 0:03:00.7]} 2...
Nc6 {[%clk 0:02:58.7]} 3. Bc4 {[%clk 0:03:01.6]} 3... Bc5 {[%clk 0:02:57.1]} 4.
c3 {[%clk 0:03:02.7]} 4... Nf6 {[%clk 0:02:53.7]} 5. d4 {[%clk 0:03:02.7]} 5...
exd4 {[%clk 0:02:50.7]} 6. O-O {[%clk 0:03:04.3]} 6... Nxe4 {[%clk 0:02:43.6]}
7. cxd4 {[%clk 0:03:04.2]} 7... d5 {[%clk 0:02:40.9]} 8. dxc5 {[%clk 0:03:05.2]}
8... dxc4 {[%clk 0:02:39.1]} 9. Qxd8+ {[%clk 0:03:07.1]} 9... Kxd8 {[%clk
0:02:34.6]} 10. Ng5 {[%clk 0:03:02.6]} 10... Nxg5 {[%clk 0:02:31.8]} 11. Bxg5+
{[%clk 0:03:04.5]} 11... f6 {[%clk 0:02:30.1]} 12. Rd1+ {[%clk 0:03:05.5]} 12...
Bd7 {[%clk 0:02:21.4]} 13. Bf4 {[%clk 0:03:07.4]} 13... Nb4 {[%clk 0:02:17]} 14.
Nc3 {[%clk 0:02:40.2]} 14... Kc8 {[%clk 0:02:13.8]} 15. Nd5 {[%clk 0:02:14.7]}
15... Nxd5 {[%clk 0:02:09.3]} 16. Rxd5 {[%clk 0:02:16.6]} 16... b5 {[%clk
0:02:04.5]} 17. h4 {[%clk 0:01:36.9]} 17... Bc6 {[%clk 0:02:00.6]} 18. Rd4
{[%clk 0:01:25.1]} 18... Kb7 {[%clk 0:02:00.7]} 19. Rad1 {[%clk 0:01:19.9]}
19... Rhe8 {[%clk 0:01:56.2]} 20. Be3 {[%clk 0:01:20.5]} 20... h5 {[%clk
0:01:52]} 21. Kh2 {[%clk 0:01:19.1]} 21... a6 {[%clk 0:01:46.7]} 22. Kg3 {[%clk
0:01:20.1]} 22... Re5 {[%clk 0:01:41.9]} 23. R4d2 {[%clk 0:01:11.1]} 23... Re4
{[%clk 0:01:39.5]} 24. Rd4 {[%clk 0:01:10.9]} 24... Rae8 {[%clk 0:01:36.8]}
1/2-1/2

[Event "*** Titled Tuesday Blitz"]
[Site "Chess.com"]
[Date "2019.04.02"]
[Round "7"]
[White "sere99"]
[Black "FERNANDEZL1983"]
[Result "1-0"]
[WhiteElo "2300"]
[BlackElo "2433"]
[TimeControl "180+2"]
[EndTime "15:30:59 PDT"]
[Termination "sere99 won by resignation"]

1. d4 {[%clk 0:03:01.9]} 1... Nf6 {[%clk 0:03:00.3]} 2. c4 {[%clk 0:03:03.8]}
2... g6 {[%clk 0:03:01.2]} 3. Nf3 {[%clk 0:03:04.4]} 3... Bg7 {[%clk 0:03:02.5]}
4. g3 {[%clk 0:03:06.3]} 4... O-O {[%clk 0:03:03.9]} 5. Bg2 {[%clk 0:03:08.2]}
5... d6 {[%clk 0:03:05.8]} 6. O-O {[%clk 0:03:10.1]} 6... c6 {[%clk 0:03:07]} 7.
Nc3 {[%clk 0:03:11.9]} 7... Nbd7 {[%clk 0:03:08.2]} 8. e4 {[%clk 0:03:13.3]}
8... e5 {[%clk 0:03:09.2]} 9. Re1 {[%clk 0:03:14.8]} 9... exd4 {[%clk
0:03:09.7]} 10. Nxd4 {[%clk 0:03:15]} 10... a5 {[%clk 0:03:10.7]} 11. b3 {[%clk
0:03:15.9]} 11... Nc5 {[%clk 0:03:11.8]} 12. h3 {[%clk 0:03:09.8]} 12... Re8
{[%clk 0:03:12.4]} 13. Bf4 {[%clk 0:03:10.1]} 13... Nh5 {[%clk 0:03:01.1]} 14.
Be3 {[%clk 0:03:02.1]} 14... Nf6 {[%clk 0:03:00.1]} 15. Qc2 {[%clk 0:02:50]}
15... Nfd7 {[%clk 0:03:00.4]} 16. Rad1 {[%clk 0:02:34.9]} 16... h5 {[%clk
0:02:54.2]} 17. f4 {[%clk 0:02:26.7]} 17... Na6 {[%clk 0:02:46.7]} 18. Nf3
{[%clk 0:02:21.8]} 18... Qc7 {[%clk 0:02:44.4]} 19. Bd4 {[%clk 0:02:15.7]} 19...
Bf8 {[%clk 0:02:41.1]} 20. f5 {[%clk 0:02:09.2]} 20... Ne5 {[%clk 0:02:39.9]}
21. Qf2 {[%clk 0:02:00.7]} 21... Bg7 {[%clk 0:02:40.9]} 22. Rf1 {[%clk 0:01:47]}
22... Nb4 {[%clk 0:02:39.7]} 23. Nxe5 {[%clk 0:01:39.4]} 23... d5 {[%clk
0:02:40.7]} 24. f6 {[%clk 0:01:29.5]} 24... Bf8 {[%clk 0:02:37.6]} 25. Nxg6
{[%clk 0:01:22.7]} 25... c5 {[%clk 0:02:33.3]} 26. Nxf8 {[%clk 0:01:13.4]} 26...
cxd4 {[%clk 0:02:32.2]} 27. Qd2 {[%clk 0:01:03]} 27... Qxg3 {[%clk 0:02:24.2]}
28. Rf3 {[%clk 0:00:56.7]} 28... Qd6 {[%clk 0:01:58.8]} 29. Qg5+ {[%clk
0:00:51.4]} 1-0

[Event "*** Titled Tuesday Blitz"]
[Site "Chess.com"]
[Date "2019.04.02"]
[Round "7"]
[White "Caisachess"]
[Black "Firouzja2003"]
[Result "0-1"]
[WhiteElo "2421"]
[BlackElo "3064"]
[TimeControl "180+2"]
[EndTime "15:31:10 PDT"]
[Termination "Firouzja2003 won by resignation"]

1. e4 {[%clk 0:03:01.9]} 1... c5 {[%clk 0:03:01.9]} 2. c3 {[%clk 0:03:02.7]}
2... d6 {[%clk 0:03:03.8]} 3. d4 {[%clk 0:03:03.3]} 3... Nf6 {[%clk 0:03:05]} 4.
Bd3 {[%clk 0:03:03.7]} 4... Nc6 {[%clk 0:03:05.7]} 5. Nf3 {[%clk 0:03:04.4]}
5... g6 {[%clk 0:03:06.7]} 6. h3 {[%clk 0:03:04.2]} 6... Bg7 {[%clk 0:03:07.4]}
7. O-O {[%clk 0:03:05.2]} 7... O-O {[%clk 0:03:08.8]} 8. Re1 {[%clk 0:03:06.1]}
8... Nd7 {[%clk 0:03:09.7]} 9. Be3 {[%clk 0:03:02.8]} 9... Qb6 {[%clk 0:03:10]}
10. dxc5 {[%clk 0:02:58.7]} 10... Qxb2 {[%clk 0:03:09.8]} 11. Nbd2 {[%clk
0:02:56.5]} 11... Nxc5 {[%clk 0:03:10.9]} 12. Bc4 {[%clk 0:02:44.9]} 12... Qxc3
{[%clk 0:03:05.7]} 13. Rc1 {[%clk 0:02:41.7]} 13... Qa5 {[%clk 0:03:07.1]} 14.
Nb3 {[%clk 0:02:39]} 14... Nxb3 {[%clk 0:03:07.5]} 15. Qxb3 {[%clk 0:02:40.9]}
15... Rb8 {[%clk 0:03:03.7]} 16. Bd5 {[%clk 0:02:25.4]} 16... Bd7 {[%clk
0:03:04.6]} 17. Bd2 {[%clk 0:02:20.8]} 17... Qd8 {[%clk 0:03:01.2]} 18. Bg5
{[%clk 0:02:15.1]} 18... h6 {[%clk 0:03:01.7]} 19. Be3 {[%clk 0:02:15]} 19... e6
{[%clk 0:03:02.1]} 20. Bxc6 {[%clk 0:02:14.9]} 20... Bxc6 {[%clk 0:03:03.2]} 21.
Bxa7 {[%clk 0:02:13.1]} 21... Ra8 {[%clk 0:03:04.4]} 22. Bb6 {[%clk 0:02:11.8]}
22... Qe7 {[%clk 0:03:05.3]} 23. Bd4 {[%clk 0:02:07.3]} 23... e5 {[%clk
0:03:06.1]} 24. Bb2 {[%clk 0:02:04.1]} 24... Kh7 {[%clk 0:03:08]} 25. Ba3 {[%clk
0:02:00.9]} 25... f5 {[%clk 0:03:06.4]} 26. Nd2 {[%clk 0:01:57.7]} 26... Qg5
{[%clk 0:02:57.5]} 27. Nf3 {[%clk 0:01:42.9]} 27... Qf6 {[%clk 0:02:47]} 28. Nd2
{[%clk 0:01:41.4]} 28... fxe4 {[%clk 0:02:46.8]} 29. Nxe4 {[%clk 0:01:20.3]}
29... Bxe4 {[%clk 0:02:47.2]} 30. Rxe4 {[%clk 0:01:20.9]} 30... Qxf2+ {[%clk
0:02:49.1]} 31. Kh1 {[%clk 0:01:21]} 31... Rf4 {[%clk 0:02:51]} 32. Rxf4 {[%clk
0:01:02.4]} 32... exf4 {[%clk 0:02:52.9]} 33. Bxd6 {[%clk 0:00:36.4]} 33... Rxa2
{[%clk 0:02:46]} 34. Qd5 {[%clk 0:00:36.9]} 34... Rd2 {[%clk 0:02:42.4]} 0-1

[Event "*** Titled Tuesday Blitz"]
[Site "Chess.com"]
[Date "2019.04.02"]
[Round "7"]
[White "FrenchMonster2002"]
[Black "riconaipe"]
[Result "0-1"]
[WhiteElo "2351"]
[BlackElo "2436"]
[TimeControl "180+2"]
[EndTime "15:31:14 PDT"]
[Termination "riconaipe won by resignation"]

1. e4 {[%clk 0:03:01.9]} 1... c6 {[%clk 0:02:58.1]} 2. Nc3 {[%clk 0:03:02.7]}
2... d5 {[%clk 0:02:59.6]} 3. Nf3 {[%clk 0:03:04.3]} 3... g6 {[%clk 0:03:00.3]}
4. h3 {[%clk 0:03:00.9]} 4... Bg7 {[%clk 0:02:59.6]} 5. d4 {[%clk 0:03:00.3]}
5... Nh6 {[%clk 0:03:00.6]} 6. Be2 {[%clk 0:02:55.9]} 6... O-O {[%clk
0:03:00.2]} 7. O-O {[%clk 0:02:56.5]} 7... f6 {[%clk 0:03:00.3]} 8. Bf4 {[%clk
0:02:52]} 8... Nf7 {[%clk 0:02:58.2]} 9. e5 {[%clk 0:02:51.5]} 9... fxe5 {[%clk
0:02:52.4]} 10. Nxe5 {[%clk 0:02:51.9]} 10... Nxe5 {[%clk 0:02:51.2]} 11. Bxe5
{[%clk 0:02:53.8]} 11... Bxe5 {[%clk 0:02:51.9]} 12. dxe5 {[%clk 0:02:55.7]}
12... Nd7 {[%clk 0:02:53]} 13. f4 {[%clk 0:02:51.4]} 13... Qb6+ {[%clk
0:02:52.4]} 14. Kh2 {[%clk 0:02:48.8]} 14... Qxb2 {[%clk 0:02:51.5]} 15. Rf3
{[%clk 0:02:23.3]} 15... Nxe5 {[%clk 0:02:40.6]} 16. fxe5 {[%clk 0:02:16]} 16...
Rxf3 {[%clk 0:02:40.1]} 17. Bxf3 {[%clk 0:01:58]} 17... Qxc3 {[%clk 0:02:38.5]}
18. Bxd5+ {[%clk 0:01:56]} 18... cxd5 {[%clk 0:02:24.2]} 19. Qxd5+ {[%clk
0:01:57.9]} 19... Kg7 {[%clk 0:02:23.3]} 20. Rf1 {[%clk 0:01:54.3]} 20... Bf5
{[%clk 0:02:23.4]} 21. g4 {[%clk 0:01:39.2]} 21... Qxc2+ {[%clk 0:02:19.9]} 22.
Kg3 {[%clk 0:01:36.8]} 22... Qd3+ {[%clk 0:02:14.3]} 23. Qxd3 {[%clk 0:01:37.5]}
23... Bxd3 {[%clk 0:02:15.9]} 24. Rc1 {[%clk 0:01:35.6]} 24... Be4 {[%clk
0:02:10]} 25. Rc7 {[%clk 0:01:34.1]} 25... Kf7 {[%clk 0:02:10.2]} 26. Kf4 {[%clk
0:01:35.2]} 26... Bc6 {[%clk 0:02:10.8]} 27. Kg5 {[%clk 0:01:31.5]} 27... Ke8
{[%clk 0:02:07.8]} 28. e6 {[%clk 0:01:28.9]} 28... Kd8 {[%clk 0:02:08.3]} 29.
Rxc6 {[%clk 0:01:27.7]} 29... bxc6 {[%clk 0:02:08.8]} 30. Kh6 {[%clk 0:01:29]}
30... c5 {[%clk 0:02:08.3]} 31. Kxh7 {[%clk 0:01:30.5]} 31... c4 {[%clk
0:02:09.6]} 32. Kxg6 {[%clk 0:01:32.1]} 32... c3 {[%clk 0:02:11.3]} 33. h4
{[%clk 0:01:33.9]} 33... c2 {[%clk 0:02:12.4]} 34. h5 {[%clk 0:01:35.8]} 34...
c1=Q {[%clk 0:02:12.9]} 35. h6 {[%clk 0:01:37.7]} 35... Qf4 {[%clk 0:02:08.4]}
36. g5 {[%clk 0:01:38.1]} 36... Kc7 {[%clk 0:02:06.8]} 37. h7 {[%clk 0:01:39]}
37... Kd6 {[%clk 0:02:04.4]} 38. a3 {[%clk 0:01:38.8]} 38... Kxe6 {[%clk
0:02:04.6]} 39. a4 {[%clk 0:01:40.5]} 39... Rh8 {[%clk 0:01:51.2]} 40. Kg7
{[%clk 0:01:41.4]} 40... Qf8+ {[%clk 0:01:50.6]} 41. Kg6 {[%clk 0:01:42]} 0-1

[Event "*** Titled Tuesday Blitz"]
[Site "Chess.com"]
[Date "2019.04.02"]
[Round "7"]
[White "j2806"]
[Black "ristingho"]
[Result "0-1"]
[WhiteElo "1744"]
[BlackElo "2481"]
[TimeControl "180+2"]
[EndTime "15:31:27 PDT"]
[Termination "ristingho won by resignation"]

1. e4 {[%clk 0:03:01.9]} 1... c6 {[%clk 0:00:15.4]} 2. d4 {[%clk 0:03:01.7]}
2... d5 {[%clk 0:00:17.3]} 3. exd5 {[%clk 0:03:02.5]} 3... cxd5 {[%clk
0:00:17.9]} 4. Bd3 {[%clk 0:03:04]} 4... Nf6 {[%clk 0:00:19.1]} 5. c3 {[%clk
0:03:04.9]} 5... Nc6 {[%clk 0:00:21]} 6. h3 {[%clk 0:03:06]} 6... g6 {[%clk
0:00:21.4]} 7. Nf3 {[%clk 0:03:06.7]} 7... Bg7 {[%clk 0:00:23.3]} 8. O-O {[%clk
0:03:07.9]} 8... O-O {[%clk 0:00:25.2]} 9. Re1 {[%clk 0:03:08.3]} 9... Bf5
{[%clk 0:00:26.7]} 10. Bxf5 {[%clk 0:03:08.4]} 10... gxf5 {[%clk 0:00:28.6]} 11.
Qe2 {[%clk 0:03:08.8]} 11... e6 {[%clk 0:00:29.6]} 12. Bf4 {[%clk 0:03:09.2]}
12... Ne4 {[%clk 0:00:30.1]} 13. Nbd2 {[%clk 0:03:08.6]} 13... a6 {[%clk
0:00:27.5]} 14. Ne5 {[%clk 0:03:05.4]} 14... Rc8 {[%clk 0:00:26.9]} 15. Nxe4
{[%clk 0:03:04]} 15... fxe4 {[%clk 0:00:27.5]} 16. Nxc6 {[%clk 0:03:01.8]} 16...
bxc6 {[%clk 0:00:26.7]} 17. Qg4 {[%clk 0:03:02.8]} 17... Kh8 {[%clk 0:00:26.9]}
18. f3 {[%clk 0:03:01.3]} 18... exf3 {[%clk 0:00:26.4]} 19. Qxf3 {[%clk
0:03:01.7]} 19... Qf6 {[%clk 0:00:26.9]} 20. Rf1 {[%clk 0:03:00.1]} 20... Qg6
{[%clk 0:00:26.2]} 21. Rae1 {[%clk 0:03:00]} 21... Rfe8 {[%clk 0:00:21.5]} 22.
Be5 {[%clk 0:02:54.6]} 22... f5 {[%clk 0:00:15.5]} 23. Qg3 {[%clk 0:02:47.9]}
23... Qxg3 {[%clk 0:00:14]} 24. Bxg3 {[%clk 0:02:48.4]} 24... Kg8 {[%clk
0:00:15.4]} 25. Be5 {[%clk 0:02:46.2]} 25... c5 {[%clk 0:00:15.7]} 26. dxc5
{[%clk 0:02:43.9]} 26... Rxc5 {[%clk 0:00:16.5]} 27. Bxg7 {[%clk 0:02:43.3]}
27... Kxg7 {[%clk 0:00:18.4]} 28. Re5 {[%clk 0:02:44.5]} 28... Kf6 {[%clk
0:00:19.4]} 29. Rfe1 {[%clk 0:02:45.4]} 29... Rb5 {[%clk 0:00:20.8]} 30. b3
{[%clk 0:02:45.5]} 30... h5 {[%clk 0:00:22.2]} 31. Kf2 {[%clk 0:02:45.7]} 31...
Rc5 {[%clk 0:00:23.2]} 32. R1e3 {[%clk 0:02:43.5]} 32... f4 {[%clk 0:00:23.9]}
33. Re1 {[%clk 0:02:41.5]} 33... Rxc3 {[%clk 0:00:24.6]} 34. R5e2 {[%clk
0:02:41.3]} 34... e5 {[%clk 0:00:24.6]} 35. Rd1 {[%clk 0:02:40.1]} 35... d4
{[%clk 0:00:24.5]} 36. Re4 {[%clk 0:02:39.6]} 36... Kf5 {[%clk 0:00:25.1]} 37.
Rdxd4 {[%clk 0:02:37.7]} 37... Rc2+ {[%clk 0:00:24.7]} 38. Kf3 {[%clk
0:02:34.1]} 38... Rec8 {[%clk 0:00:23.9]} 39. Rd5 {[%clk 0:02:33]} 39... R8c3+
{[%clk 0:00:25.5]} 40. Rd3 {[%clk 0:02:30.9]} 40... Rxd3+ {[%clk 0:00:26.7]} 0-1